[Event "FIDE World School-ch O-17 2025"]
[Site "Vrnjacka Banja"]
[Date "2025.03.21"]
[Round "2.1"]
[White "Bogdanov, Artyom"]
[Black "Kazhmuratov, Altair"]
[Result "1-0"]
[Annotator "TA"]
[ECO "B15"]
[WhiteElo "2373"]
[BlackElo "1971"]
[PlyCount "83"]
[EventDate "2025.03.19"]
[EventType "swiss"]
[EventCountry "SRB"]
[SourceTitle "playchess.com"]
[Source "ChessBase"]
[SourceQuality "1"]
[TimeControl "5400+30"]

{[%evp 9,83,45,62,54,60,45,55,27,20,32,16,16,42,20,25,19,38,45,41,41,42,46,40,37,42,40,44,34,39,44,57,21,40,20,65,68,79,87,116,48,51,17,20,25,25,25,74,74,72,61,73,64,95,95,95,95,94,94,87,95,354,338,1160,1166,1166,998,929,926,2026,1890,6283,2527,29982,29983,29985,29986]} 1. e4 {[%emt 0:00:03]} c6 {[%emt 0:00:21]} 2. Nf3 {[%emt 0:00:33]} d5 {[%emt 0:00:09]} 3. Nc3 {[%emt 0:00:06]} g6 {[%emt 0:01:10]} 4. d4 {[%emt 0:00:29]} dxe4 {[%emt 0:01:29]} 5. Nxe4 {[%emt 0:00:11]} Bg7 {[%emt 0:00:14] Black is weak on the dark squares} 6. Bc4 {[%emt 0:05:36] B15: Caro-Kann: 3 Nc3: 3...g6 and 3...dxe4 4 Nxe4 Nf6 5 Nxf6+ exf6.} Nf6 {[%emt 0:03:27]} 7. Nxf6+ {[%emt 0:01:59]} exf6 {[%emt 0:00:26]} 8. O-O {[%emt 0:03:07] White is slightly better.} O-O {[%emt 0:01:49]} 9. Re1 {[%emt 0:06:46] is the legacy move (9.h3).} Nd7 {[%emt 0:00:59][%cal Bb8d7,Bd7b6,Bb6d5][%mdl 32]} 10. a4 {[%emt 0:13:24]} c5 $146 {[%emt 0:06:37]} (10... Nb6 11. Bb3 a5 12. h3 Nd5 13. Bd2 Qd6 14. c4 Nf4 15. Bxf4 Qxf4 16. d5 cxd5 17. cxd5 {½-½ Alsasua,E-Weiss,S Sacramento op 1993}) 11. Bf4 {[%emt 0:16:20]} Nb6 {[%emt 0:03:44]} 12. Bf1 {[%emt 0:00:36]} Nd5 {[%emt 0:01:48]} 13. Bg3 {[%emt 0:03:27]} cxd4 {[%emt 0:11:05]} 14. Qxd4 {[%emt 0:03:25]} Be6 {[%emt 0:14:16]} 15. c3 {[%emt 0:08:19]} f5 {[%emt 0:05:39]} 16. Be5 {[%emt 0:01:09]} Bxe5 {[%emt 0:00:40]} 17. Qxe5 {[%emt 0:03:59]} Qf6 {[%emt 0:05:39]} 18. Nd4 {[%emt 0:00:50][%cal Rd4e6]} Qxe5 {[%emt 0:02:41]} 19. Rxe5 {[%emt 0:00:06]} Nc7 {[%emt 0:00:02]} 20. Nxe6 {[%emt 0:03:07]} fxe6 {[%emt 0:02:11]} 21. g3 {[%emt 0:10:51]} Kf7 {[%emt 0:07:54]} 22. Bg2 {[%emt 0:00:53][%cal Oe5c5]} Rfd8 {[%emt 0:00:38] [#]} 23. Rc5 $1 {[%emt 0:01:24] White is more active.} (23. Bxb7 Rab8 24. Bh1 Rxb2 $11) 23... Na6 {[%emt 0:06:18] [#]} 24. Rb5 {[%emt 0:00:43]} (24. Ra5 $1 $16 Rab8 25. b4) 24... Rab8 $14 {[%emt 0:00:26]} 25. Rxb7+ {[%emt 0:01:48]} (25. Ra5 $5) 25... Rxb7 {[%emt 0:00:04]} 26. Bxb7 {[%emt 0:00:04][%mdl 4096] Endgame KRB-KRN. White is a pawn up.} Nc5 {[%emt 0:00:12]} 27. Bf3 {[%emt 0:01:10]} Rd2 {[%emt 0:04:40]} (27... Rd3 $11 28. Bc6 Rd6) 28. b4 $16 {[%emt 0:03:01][%cal Bb2b4,Bb4b5,Bb5b6][%mdl 32]} Nd3 {[%emt 0:00:15]} 29. Bg2 {[%emt 0:03:56]} ({Avoid the trap} 29. Rd1 $2 Ne5 $19) 29... Ke7 {[%emt 0:10:46]} 30. f4 {[%emt 0:01:51][%cal Bf2f4,Bf4g5][%mdl 32]} Rc2 {[%emt 0:03:18]} 31. a5 {[%emt 0:04:07]} Rxc3 {[%emt 0:05:22]} 32. b5 {[%emt 0:02:29]} Rb3 {[%emt 0:00:18] [#]} 33. b6 {[%emt 0:00:10]} a6 {[%emt 0:00:05]} (33... axb6 $2 {too greedy.} 34. a6 Rc3 35. Bb7 $18 (35. a7 Rc8 $18)) 34. Rd1 {[%emt 0:00:54]} g5 $2 {[%emt 0:00:57][%mdl 8192] Loses the game.} 35. fxg5 $18 {[%emt 0:00:15]} Nb2 $2 {[%emt 0:01:25]} (35... Nc5 36. Bc6 Kf8 37. Rd8+ Ke7) 36. Rb1 {[%emt 0:00:47]} e5 {[%emt 0:00:49]} 37. Bf1 {[%emt 0:00:15]} Rb4 {[%emt 0:00:33]} 38. Bxa6 {[%emt 0:00:14] Threatens to win with Be2.} e4 {[%emt 0:00:14]} 39. Be2 {[%emt 0:00:18]} Kd6 {[%emt 0:00:24]} 40. a6 {[%emt 0:00:46] Intending a7 and mate.} Kc6 {[%emt 0:00:37]} 41. b7 {[%emt 0:00:14]} Kc7 {[%emt 0:00:43]} 42. Rc1+ {[%emt 0:00:11] Weighted Error Value: White=0.06 (flawless) /Black=0.78  Loses game:     	---       	Black=1      Mistake:       	White=1     	Black=2      Inaccurate:     	White=3     	Black=3      OK:         	White=13    	Black=13     Best:        	White=2     	Black=3      Strong:       	White=1     	---} 1-0

[Event "FIDE World School-ch O-17 2025"]
[Site "Vrnjacka Banja"]
[Date "2025.03.21"]
[Round "2.2"]
[White "Zdravkovic, Filip"]
[Black "Ljepic, Andrej"]
[Result "0-1"]
[Annotator "TA"]
[ECO "B44"]
[WhiteElo "1963"]
[BlackElo "2337"]
[PlyCount "86"]
[EventDate "2025.03.19"]
[EventType "swiss"]
[EventCountry "SRB"]
[SourceTitle "playchess.com"]
[Source "ChessBase"]
[SourceQuality "1"]
[TimeControl "5400+30"]

{[%evp 20,86,34,24,16,14,17,-8,57,33,54,28,38,10,24,18,54,12,16,-19,-15,-22,10,15,8,9,10,5,0,0,0,0,0,0,0,0,0,0,0,-48,-45,-76,-27,-21,0,-66,-60,-50,-23,-73,-81,-74,-72,-59,-34,-111,-83,-103,-98,-200,-204,-276,-276,-293,-294,-260,-257,-29991,-29992]} 1. e4 {[%emt 0:00:08]} c5 {[%emt 0:00:09]} 2. Nf3 {[%emt 0:00:29][%cal Bg1f3,Bf3d4,Bd4b5][%mdl 32]} Nc6 {[%emt 0:00:06]} 3. d4 {[%emt 0:00:47]} cxd4 {[%emt 0:00:06]} 4. Nxd4 {[%emt 0:00:04]} e5 {[%emt 0:00:06]} 5. Nb5 {[%emt 0:00:38]} d6 {[%emt 0:00:07]} 6. c4 {[%emt 0:03:53]} a6 {[%emt 0:00:09]} 7. N5c3 {[%emt 0:01:18]} Nf6 {[%emt 0:01:17]} 8. Be2 {[%emt 0:01:15]} Be7 {[%emt 0:00:58]} 9. O-O {[%emt 0:00:35]} O-O {[%emt 0:00:27]} 10. Be3 {[%emt 0:01:54]} Be6 {[%emt 0:00:24]} 11. f3 {[%emt 0:03:13]} Rc8 {[%emt 0:02:54] B44: Sicilian: Taimanov: 5 Nb5.} 12. Nd5 {[%emt 0:02:51]} Bxd5 $1 {[%emt 0:06:09]} 13. exd5 {[%emt 0:01:57]} Nb8 {[%emt 0:06:17]} (13... Nd4 $1 $11) 14. Nc3 {[%emt 0:06:31]} Nbd7 {[%emt 0:00:38]} 15. Rc1 {[%emt 0:03:58]} Nh5 $146 {[%emt 0:06:38]} (15... Ne8 16. Bd3 f5 17. Qc2 g6 18. f4 e4 19. Be2 Bf6 20. Qd2 Bg7 21. Bd4 Nef6 {0-1 Calvert,J (1552)-Blewitt,S (1934) BCF-ch Seniors 65 2016 (3)}) 16. Qd2 {[%emt 0:09:47] Black is weak on the light squares} f5 {[%emt 0:01:55]} 17. b4 {[%emt 0:08:11][%cal Oc4c5]} Nf4 {[%emt 0:10:28]} 18. Bxf4 {[%emt 0:06:10]} (18. c5 dxc5 19. d6 Bg5 20. Nd5) 18... exf4 {[%emt 0:00:06]} 19. Bd3 {[%emt 0:01:42][%cal Og1h1]} Qb6+ {[%emt 0:16:39]} 20. Kh1 {[%emt 0:00:43]} Qxb4 {[%emt 0:04:36]} 21. Rb1 $1 {[%emt 0:05:20]} (21. Qxf4 g6 22. Nb1 Bf6) 21... Qa5 {[%emt 0:00:21]} 22. Rxb7 {[%emt 0:00:57]} Rc7 {[%emt 0:01:39]} 23. Rxc7 {[%emt 0:00:56]} Qxc7 {[%emt 0:00:07]} 24. Qxf4 {[%emt 0:03:23]} Nc5 {[%emt 0:00:58]} 25. Bb1 {[%emt 0:11:49][%cal Oc3e2]} (25. Bxf5 $2 g6 26. Ne2 Rxf5 $19 (26... gxf5 27. Nd4 $17)) 25... g6 {[%emt 0:02:56]} 26. Ne2 {[%emt 0:06:25]} Bf6 {[%emt 0:01:37]} 27. Nd4 {[%emt 0:04:41]} Bxd4 {[%emt 0:03:04]} 28. Qxd4 {[%emt 0:00:04]} Qe7 {[%emt 0:00:56]} 29. g4 {[%emt 0:10:03]} (29. Qf4 $11) 29... Qe2 $15 {[%emt 0:08:12]} 30. Kg1 {[%emt 0:02:20] [#]} fxg4 {[%emt 0:00:13] Black is much more active.} ({Black should play} 30... Rb8 $1 $17 {[%cal Rb8b2] and ...Rb2 would now be decisive} 31. Qd1 Qe3+ (31... Qxc4 32. gxf5 Rb2 33. Rf2 $11) 32. Kh1 fxg4 33. fxg4 a5) 31. Qxg4 $11 {[%emt 0:00:08]} Qe3+ {[%emt 0:00:06]} (31... Rf7 {is interesting.} 32. Qg3 Rf6 33. Qh4 Qb2) 32. Kh1 {[%emt 0:00:10]} (32. Kg2 $11) 32... Kg7 $40 {[%emt 0:00:09][%mdl 128] Black attacks.} (32... Qe2 33. Qg2 Qxg2+ (33... Qxc4 $2 34. Bxg6 Qh4 35. Rg1 $16) 34. Kxg2 $11) 33. f4 {[%emt 0:02:53]} Qd4 {[%emt 0:00:26]} 34. Qe2 {[%emt 0:00:43]} (34. Qf3 $1 $11 {remains equal.}) 34... Rxf4 $17 {[%emt 0:06:39]} 35. Rxf4 {[%emt 0:00:49]} Qxf4 {[%emt 0:00:05][%mdl 4096] Endgame KQB-KQN} 36. Kg2 {[%emt 0:00:08]} Kf6 {[%emt 0:01:36]} 37. Qb2+ {[%emt 0:00:46]} ({White should play} 37. Qe8 $15) 37... Kg5 {[%emt 0:01:51]} 38. Qc3 {[%emt 0:00:13] [#]} Nd7 $1 {[%emt 0:02:29]} 39. Qd3 {[%emt 0:01:34]} (39. Qg3+ $17 {keeps fighting.} Qxg3+ 40. Kxg3) 39... Ne5 $19 {[%emt 0:00:22]} 40. Qe2 {[%emt 0:00:04]} Nxc4 {[%emt 0:01:01]} ({Not} 40... Qxc4 41. Qxc4 Nxc4 42. Bd3 Ne3+ 43. Kf3 Nxd5 44. Bxa6 $11) 41. Qe7+ {[%emt 0:00:57]} Kh6 {[%emt 0:00:11] ( -> ...Ne3+)} 42. Qe2 {[%emt 0:00:28]} Ne3+ {[%emt 0:01:00]} 43. Kh3 $2 {[%emt 0:00:21]} (43. Kg1 $19) 43... Kg5 {[%emt 0:01:30] Weighted Error Value: White=0.47/Black=0.10 (very precise)   Mistake:       	White=6     	Black=2      Inaccurate:     	White=6     	Black=3      OK:         	White=8     	Black=12     Best:        	White=2     	Black=5      Strong:       	White=1     	Black=2} 0-1

[Event "FIDE World School-ch O-17 2025"]
[Site "Vrnjacka Banja"]
[Date "2025.03.21"]
[Round "2.3"]
[White "Yildiz, Egehan"]
[Black "Brankovic, Uros"]
[Result "1-0"]
[Annotator "TA"]
[ECO "D38"]
[WhiteElo "2204"]
[BlackElo "1966"]
[PlyCount "87"]
[EventDate "2025.03.19"]
[EventType "swiss"]
[EventCountry "SRB"]
[SourceTitle "playchess.com"]
[Source "ChessBase"]
[SourceQuality "1"]
[TimeControl "5400+30"]

{[%evp 13,87,0,19,16,20,19,19,12,0,-9,23,11,15,-13,2,0,15,0,0,0,0,-13,89,76,147,153,155,151,152,55,57,56,108,44,171,9,10,10,23,11,29,17,263,213,211,112,283,244,529,507,1220,1198,1166,1015,1043,694,653,569,29987,29988,29991,29992,29993,29993,29993,29994,29994,29995,29997,29998,29998,29996,29996,29997,29997,29998]} 1. d4 {[%emt 0:00:01]} Nf6 {[%emt 0:00:05]} 2. c4 {[%emt 0:00:05]} e6 {[%emt 0:00:04]} 3. Nf3 {[%emt 0:01:09]} d5 {[%emt 0:00:08]} 4. Nc3 {[%emt 0:00:08]} Bb4 {[%emt 0:00:21]} 5. Qa4+ {[%emt 0:00:21]} Nc6 {[%emt 0:00:11]} 6. a3 {[%emt 0:00:03]} Bxc3+ {[%emt 0:00:33]} 7. bxc3 {[%emt 0:00:07]} Bd7 {[%emt 0:02:47][%cal Oc6d4]} 8. cxd5 {[%emt 0:01:02] D38: Queen's Gambit Declined: Ragozin Defence (4 Nf3 Bb4).} exd5 {[%emt 0:01:20]} 9. Bg5 {[%emt 0:01:24][%cal Bc1g5,Bg5h4,Bh4g3][%mdl 32]} O-O {[%emt 0:03:59]} 10. Qc2 {[%emt 0:08:52] The position is equal.} h6 {[%emt 0:04:30]} 11. Bh4 {[%emt 0:08:08]} g5 {[%emt 0:06:49]} 12. Bg3 {[%emt 0:00:46]} Ne4 {[%emt 0:05:47]} 13. Nd2 {[%emt 0:26:47]} Bf5 $146 {[%emt 0:27:38]} (13... Nxd2 {with more complications.} 14. Kxd2 Qf6 15. e3 Bf5) (13... Nxg3 14. hxg3 Qf6 15. e3 Bf5 16. Qb3 Rfd8 17. Be2 Na5 18. Qb4 b6 19. O-O Rac8 20. g4 {½-½ Kosic,D (2495)-Bokros,A (2452) HUN-chT 1112 2011 (8)}) 14. Nxe4 {[%emt 0:00:43]} Bxe4 {[%emt 0:05:33]} 15. Qd1 {[%emt 0:00:50]} Qe7 {[%emt 0:02:04]} 16. h4 {[%emt 0:06:15]} Kg7 {[%emt 0:01:03]} 17. e3 {[%emt 0:04:06]} f5 {[%emt 0:05:45]} (17... Rae8 $11) 18. hxg5 $16 {[%emt 0:14:53]} hxg5 {[%emt 0:00:39] [#]} (18... f4 $142 19. gxh6+ (19. Bxf4 Rxf4 20. exf4 Bxg2+ 21. Kd2 Bxh1 $15) 19... Kh7) 19. f3 $1 {[%emt 0:03:58]} f4 {[%emt 0:00:50]} 20. fxe4 {[%emt 0:01:01]} fxg3 {[%emt 0:06:43]} 21. e5 {[%emt 0:01:08][%csl Oe5] White has a strong passed pawn} (21. Qg4 $16) 21... Qf7 $14 {[%emt 0:03:07][%csl Gf8,Gg3][%cal Rf7f2] Dodges Rh5} 22. Qg4 {[%emt 0:14:13][%cal Of1d3]} Qf2+ {[%emt 0:07:34]} 23. Kd1 {[%emt 0:00:04] The board is on fire.} Qxe3 {[%emt 0:00:29] [#]} ({Black should play} 23... Qxf1+ $14 24. Rxf1 Rxf1+ 25. Kc2 Rxa1) 24. Qd7+ $2 $40 {[%emt 0:00:40][%mdl 128] White mounts an attack.} ({White has to play} 24. Be2 $1 $18) 24... Rf7 $11 {[%emt 0:00:29] [#]} 25. Rh7+ $1 {[%emt 0:00:07]} Kxh7 {[%emt 0:00:06]} 26. Qxf7+ {[%emt 0:00:02]} Kh8 {[%emt 0:01:58]} 27. Qf6+ {[%emt 0:00:36][%mdl 1024] White has compensation.} (27. Qxd5 Rf8 (27... Qxc3 $2 28. Rc1 $19) 28. Kc2 Rf4 $19) 27... Kg8 $2 {[%emt 0:01:20] White leaves nothing to chance now.} (27... Kh7 $1 $11) 28. Qg6+ $18 {[%emt 0:00:17]} Kf8 {[%emt 0:04:44]} 29. Kc2 {[%emt 0:02:17]} (29. Bd3 $18 {Strongly threatening Qh6+.} Qg1+ 30. Kc2 Qf2+ (30... Qxa1 31. Qh6+ Kf7 32. Bg6+ Ke6 33. Qh3+ Ke7 34. Qh7+ Kd8 35. Qg8+ Kd7 36. Qxd5+ Kc8 37. Bf5+ Kb8 38. Qg8+) (30... Qxg2+ $2 31. Kb3 $18) 31. Kb3 Nxe5 32. Qh6+ (32. dxe5 Qb6+ 33. Qxb6 axb6 $18) 32... Kf7 33. Qh7+ (33. dxe5 Qb6+ 34. Qxb6 axb6 $18) 33... Ke6 34. dxe5 Qb6+ 35. Ka4) 29... Qf2+ $2 {[%emt 0:02:49]} (29... a5 $16) 30. Kb3 {[%emt 0:00:41][%cal Of1b5,Bc2b3,Bb3a4,Ba4a5,Ba5a6][%mdl 32]} Na5+ $2 {[%emt 0:01:01]} (30... a5 31. a4 (31. Qxg5 $2 a4#) 31... Nxd4+ 32. cxd4 Qxd4 33. Qf6+ Kg8) 31. Ka4 {[%emt 0:00:29]} Qb2 {[%emt 0:02:38]} (31... Qf7 $142 32. Qh6+ (32. Qxg5 Nc4 $18) 32... Qg7 33. Qxg7+ Kxg7 34. Kxa5 Rf8) 32. Qf6+ {[%emt 0:01:23]} Kg8 {[%emt 0:01:59]} 33. Qxg5+ {[%emt 0:00:18]} Kf8 {[%emt 0:00:38]} 34. Qf5+ {[%emt 0:00:24]} Kg8 {[%emt 0:00:39] [#]} 35. Bc4 {[%emt 0:02:24] Prevents Qb3+} b5+ {[%emt 0:01:00][%cal Bb7b5,Bb5b4][%mdl 32]} (35... Nxc4 36. Qg6+) 36. Kxa5 {[%emt 0:01:03] White mates.} Qxc3+ {[%emt 0:00:10]} 37. Ka6 $1 {[%emt 0:00:04]} Qxc4 {[%emt 0:00:21] KQR-KQR. Black is a pawn up.} 38. Qg6+ {[%emt 0:00:12]} Kf8 {[%emt 0:00:08]} 39. Rh1 {[%emt 0:01:22]} (39. Qxg3 $2 {perishes.} Qc6+ (39... Qxd4 40. Rf1+ Ke8 41. Qg6+ Kd8 42. Rf8+ Kd7 43. Rf7+ Ke8 44. Qg8#) 40. Ka5 Qb6+ 41. Kb4 Qxd4+ 42. Kb3 Qxa1 $19) 39... b4+ {[%emt 0:00:39]} 40. Ka5 {[%emt 0:00:57]} Rb8 {[%emt 0:01:10]} 41. Rh8+ {[%emt 0:00:07]} Ke7 {[%emt 0:00:08]} 42. Qg7+ {[%emt 0:00:07]} Ke6 {[%emt 0:00:11]} 43. Qg4+ {[%emt 0:01:15]} Ke7 {[%emt 0:00:23]} 44. Rh7+ {[%emt 0:00:06] Weighted Error Value: White=0.39/Black=0.71  Loses game:     	---       	Black=2      Missed win:     	White=1     	---        Mistake:       	White=2     	Black=5      Inaccurate:     	White=2     	Black=1      OK:         	White=10    	Black=2      Best:        	White=5     	Black=6      Strong:       	White=1     	---        Brilliant:      	White=1     	---} 1-0

[Event "FIDE World School-ch O-17 2025"]
[Site "Vrnjacka Banja"]
[Date "2025.03.21"]
[Round "2.4"]
[White "Topuz, Mirac Melih"]
[Black "Taran, Egor A"]
[Result "0-1"]
[Annotator "NA RC"]
[ECO "D11"]
[WhiteElo "2113"]
[BlackElo "1961"]
[PlyCount "114"]
[EventDate "2025.03.19"]
[EventType "swiss"]
[EventCountry "SRB"]
[SourceTitle "playchess.com"]
[Source "ChessBase"]
[SourceQuality "1"]
[TimeControl "5400+30"]

1. d4 {[%emt 0:00:00]} d5 {[%emt 0:00:04]} 2. c4 {[%emt 0:00:04]} c6 {[%emt 0:00:04]} 3. Nf3 {[%emt 0:00:05]} Nf6 {[%emt 0:00:04]} 4. Qc2 {[%emt 0:00:04]} g6 $11 {[%emt 0:00:37]} 5. Bf4 {[%emt 0:00:03]} Bg7 {[%emt 0:00:09]} 6. e3 {[%emt 0:00:08]} Bf5 {[%emt 0:00:52]} 7. Qb3 {[%emt 0:06:57]} Qb6 {[%emt 0:09:55]} 8. c5 {[%emt 0:06:33]} Qxb3 {[%emt 0:00:09]} 9. axb3 {[%emt 0:00:01]} Nbd7 {[%emt 0:01:14]} 10. h3 {[%emt 0:00:13]} O-O {[%emt 0:02:30]} 11. Nbd2 {[%emt 0:00:47]} a6 {[%emt 0:15:01]} 12. Be2 {[%emt 0:05:55]} Rfe8 {[%emt 0:06:57]} 13. b4 {[%emt 0:03:10]} Ne4 {[%emt 0:16:58]} 14. Nb3 {[%emt 0:07:46]} e5 {[%emt 0:13:24]} 15. Bh2 {[%emt 0:07:21]} exd4 {[%emt 0:07:29]} 16. Nfxd4 {[%emt 0:01:10]} Ne5 {[%emt 0:01:30]} 17. Rc1 {[%emt 0:32:42]} Rad8 {[%emt 0:02:47]} 18. O-O {[%emt 0:12:01]} Bc8 {[%emt 0:01:35]} 19. Rfd1 {[%emt 0:00:23]} h5 {[%emt 0:02:34]} 20. Bf1 {[%emt 0:02:14]} h4 {[%emt 0:03:23]} 21. Rc2 {[%emt 0:00:58]} f5 {[%emt 0:13:44]} 22. Na5 {[%emt 0:05:14]} Kf7 {[%emt 0:00:00]} 23. Be2 {[%emt 0:06:01]} Bf6 {[%emt 0:00:00]} 24. Bf1 {[%emt 0:00:22]} Bg7 {[%emt 0:00:00]} 25. Bxe5 {[%emt 0:02:16]} Bxe5 {[%emt 0:00:00]} 26. Ndxc6 {[%emt 0:00:27]} bxc6 {[%emt 0:00:00]} 27. Nxc6 {[%emt 0:00:03]} Bb7 {[%emt 0:00:00]} 28. Nxd8+ {[%emt 0:00:31]} Rxd8 {[%emt 0:00:00]} 29. c6 {[%emt 0:00:30]} Bc8 {[%emt 0:00:00]} 30. Ra1 {[%emt 0:00:56]} d4 {[%emt 0:02:03]} 31. exd4 {[%emt 0:00:29]} Rxd4 {[%emt 0:00:40]} 32. Bc4+ {[%emt 0:00:34]} Ke7 {[%emt 0:00:14]} 33. b5 {[%emt 0:00:25]} axb5 {[%emt 0:00:46]} 34. Bxb5 {[%emt 0:00:02]} Rb4 {[%emt 0:01:11]} 35. Bd3 {[%emt 0:01:04]} Nd6 {[%emt 0:01:35]} 36. Re1 {[%emt 0:00:29]} Kf6 {[%emt 0:00:14]} 37. Ree2 {[%emt 0:00:21]} Rd4 {[%emt 0:00:13]} 38. Rcd2 {[%emt 0:00:37]} Bf4 {[%emt 0:00:15]} 39. Rd1 {[%emt 0:00:04]} Ba6 {[%emt 0:00:33]} 40. g3 {[%emt 0:00:55]} hxg3 {[%emt 0:00:34]} 41. fxg3 {[%emt 0:00:00]} Rxd3 {[%emt 0:00:53]} 42. Rxd3 {[%emt 0:00:22]} Bxd3 {[%emt 0:00:00]} 43. Re1 {[%emt 0:00:22]} Bxg3 {[%emt 0:01:02]} 44. Re3 {[%emt 0:00:01]} Be4 {[%emt 0:00:38]} 45. Rxg3 {[%emt 0:00:01]} Bxc6 {[%emt 0:00:00]} 46. h4 {[%emt 0:00:54]} f4 {[%emt 0:01:39]} 47. Rc3 {[%emt 0:00:01]} Bd5 {[%emt 0:00:00]} 48. b4 {[%emt 0:00:16]} Ke5 {[%emt 0:00:00]} 49. Kh2 {[%emt 0:00:28]} Ne4 {[%emt 0:00:03]} 50. Rc8 {[%emt 0:00:47]} Nd2 {[%emt 0:00:52]} 51. Re8+ {[%emt 0:00:47]} Kd4 {[%emt 0:00:25]} 52. Kh3 {[%emt 0:00:09]} f3 {[%emt 0:01:40]} 53. Rf8 {[%emt 0:02:22]} Ke3 {[%emt 0:00:00]} 54. Kg4 {[%emt 0:00:06]} Be6+ {[%emt 0:00:07]} 55. Kg5 {[%emt 0:00:07]} Bf5 {[%emt 0:00:21]} 56. h5 {[%emt 0:01:13]} Ne4+ {[%emt 0:00:23]} 57. Kh6 {[%emt 0:00:17]} f2 {[%emt 0:01:39]} 0-1

[Event "FIDE World School-ch O-17 2025"]
[Site "Vrnjacka Banja"]
[Date "2025.03.21"]
[Round "2.5"]
[White "Kanacki, Vuk"]
[Black "Adithya A Chullikkad"]
[Result "0-1"]
[Annotator "NA RC"]
[ECO "D35"]
[WhiteElo "1956"]
[BlackElo "2101"]
[PlyCount "82"]
[EventDate "2025.03.19"]
[EventType "swiss"]
[EventCountry "SRB"]
[SourceTitle "playchess.com"]
[Source "ChessBase"]
[SourceQuality "1"]
[TimeControl "5400+30"]

1. d4 {[%emt 0:00:01]} Nf6 {[%emt 0:00:26]} 2. c4 {[%emt 0:00:04]} e6 {[%emt 0:00:38]} 3. Nf3 {[%emt 0:00:30]} d5 {[%emt 0:00:43]} 4. cxd5 {[%emt 0:00:35]} exd5 {[%emt 0:02:19]} 5. Nc3 {[%emt 0:01:01]} h6 {[%emt 1:28:54]} 6. Bf4 {[%emt 0:00:22]} Bd6 {[%emt 0:00:00]} 7. Bxd6 {[%emt 0:03:33]} Qxd6 {[%emt 0:00:00]} 8. Qc2 {[%emt 0:00:30]} O-O {[%emt 0:00:00]} 9. e3 {[%emt 0:00:27]} c6 {[%emt 0:00:00]} 10. Bd3 {[%emt 0:02:57]} Be6 {[%emt 0:00:00]} 11. O-O-O {[%emt 0:03:17]} a5 {[%emt 0:00:00]} 12. Kb1 {[%emt 0:02:14]} Na6 {[%emt 0:00:00]} 13. Bxa6 {[%emt 0:01:46]} Rxa6 {[%emt 0:00:00]} 14. Rc1 {[%emt 0:09:31]} a4 {[%emt 0:00:00]} 15. Ne2 {[%emt 0:05:01]} Ne4 {[%emt 0:00:00]} 16. Ng3 {[%emt 0:01:11]} Rb6 {[%emt 0:00:00]} 17. Ne5 {[%emt 0:09:18]} Qb4 {[%emt 0:00:00]} 18. Rhd1 {[%emt 0:00:56]} Nd6 {[%emt 0:00:00]} 19. Nd3 {[%emt 0:01:59]} Qb5 {[%emt 0:00:00]} 20. Qc5 {[%emt 0:00:42]} Nc4 {[%emt 0:00:00]} 21. Qxb5 {[%emt 0:00:11]} Rxb5 {[%emt 0:00:00]} 22. Ka1 {[%emt 0:00:22]} f6 {[%emt 0:00:00]} 23. Rc2 {[%emt 0:05:14]} Bf7 {[%emt 0:00:00]} 24. Ne2 {[%emt 0:01:05]} Bg6 {[%emt 0:00:00]} 25. Nc3 {[%emt 0:02:09]} Ra5 {[%emt 0:00:00]} 26. Re2 {[%emt 0:00:17]} Bxd3 {[%emt 0:00:00]} 27. Rxd3 {[%emt 0:00:13]} b5 {[%emt 0:00:00]} 28. Nb1 {[%emt 0:03:13]} Ra7 {[%emt 0:01:02]} 29. Na3 {[%emt 0:04:05]} b4 {[%emt 0:03:54]} 30. Nxc4 {[%emt 0:07:24]} dxc4 {[%emt 0:00:05]} 31. Rd1 {[%emt 0:00:05]} a3 {[%emt 0:02:20]} 32. Rc1 {[%emt 0:00:58]} b3 {[%emt 0:01:28]} 33. Rxc4 {[%emt 0:30:29]} Rfa8 {[%emt 0:00:10]} 34. Rxc6 {[%emt 0:03:28]} axb2+ {[%emt 0:00:10]} 35. Rxb2 {[%emt 0:00:06]} Rxa2+ {[%emt 0:00:04]} 36. Rxa2 {[%emt 0:00:07]} Rxa2+ {[%emt 0:00:03]} 37. Kb1 {[%emt 0:00:06]} Rxf2 {[%emt 0:00:19]} 38. d5 {[%emt 0:01:48]} Rxg2 {[%emt 0:00:32]} 39. d6 {[%emt 0:02:45]} Rd2 {[%emt 0:00:32]} 40. Kc1 {[%emt 0:00:00]} Rd3 {[%emt 0:03:23]} 41. Rc8+ {[%emt 0:00:00]} Kh7 {[%emt 0:01:23]} 0-1